bitfinex/quotes_SOLUSD_20260228
["timestamp","ask_amount","ask_price","bid_price","bid_amount"]
[1772309792199,0.1,82.89,82.862,3.7024629]
[1772309792399,12.06432699,82.889,82.862,3.7024629]
[1772309793099,12.06432699,82.889,82.852,42.24400134]
[1772309793100,2.75570146,82.919,82.881,3.7024629]
[1772309793592,30.14866526,82.923,82.891,3.7024629]
[1772309793792,12.05908953,82.925,82.893,3.7024629]
[1772309794906,2.77496565,82.919,82.885,3.7024629]
[1772309795205,42.20681337,82.925,82.885,3.7024629]
[1772309795391,12.05908953,82.925,82.891,3.7024629]
[1772309795781,12.05908953,82.925,82.86,15.57844413]
[1772309795782,30.13921265,82.949,82.91,15.57844413]
[1772309795983,12.05497187,82.954,82.921,3.7024629]
[1772309796910,15.57844413,82.94,82.911,3.7024629]
[1772309797213,2.79415188,82.949,82.911,3.7024629]
[1772309797705,12.05574576,82.948,82.911,3.7024629]
[1772309798097,15.57844413,82.94,82.911,3.7024629]
[1772309798291,15.57844413,82.92,82.891,3.7024629]
[1772309798990,2.83334784,82.929,82.891,3.7024629]
[1772309799190,42.19511018,82.948,82.911,3.7024629]
[1772309799396,2.83334784,82.947,82.911,3.7024629]
[1772309799707,12.05705397,82.939,82.911,3.7024629]
[1772309799890,42.19968891,82.939,82.911,3.7024629]
[1772309801108,45.07168198,82.939,82.911,3.7024629]
[1772309801304,2.87199307,82.938,82.901,3.7024629]
[1772309801886,42.19968891,82.939,82.903,3.7024629]
[1772309801887,12.05734473,82.937,82.903,3.7024629]
[1772309802090,15.57844413,82.96,82.921,3.7024629]
[1772309802292,2.89098342,82.959,82.921,3.7024629]
[1772309803493,45.09977951,82.958,82.921,3.7024629]
[1772309803906,2.92831226,82.957,82.921,3.7024629]
[1772309804807,2.96478851,82.949,82.921,3.7024629]
[1772309804989,2.96478851,82.949,82.911,3.93409836]
[1772309806185,45.17782319,82.948,82.911,3.93409836]
[1772309806511,15.57844413,82.93,82.903,3.84741996]
[1772309807018,3.01794674,82.937,82.903,3.84741996]
[1772309808401,42.20121539,82.936,82.903,3.84741996]
[1772309808604,3.03526067,82.935,82.903,3.84741996]
[1772309809314,4.04624273,82.939,82.9,15.57844413]
[1772309809699,4.04624273,82.939,82.895,12.06337722]
[1772309809898,4.04624273,82.939,82.9,15.57844413]
[1772309810810,15.57844413,82.94,82.902,0.03364264]
[1772309810811,4.04624273,82.937,82.902,0.03364264]
[1772309812212,12.05719935,82.938,82.911,0.0501747]
[1772309812509,4.04624273,82.937,82.902,0.0501747]
[1772309813703,4.04624273,82.935,82.901,12.06258066]
[1772309815421,4.04624273,82.935,82.901,30.2223162]
[1772309815619,12.05647251,82.943,82.911,0.06586453]
[1772309815798,4.04624273,82.943,82.911,0.06586453]
[1772309816401,4.04624273,82.943,82.911,0.04925076]
[1772309816811,4.04624273,82.943,82.91,12.06127048]
[1772309817020,60.26546203,82.967,82.911,0.03282782]
[1772309817021,4.04624273,82.967,82.911,0.03282782]
[1772309817200,4.04624273,82.966,82.926,0.03282782]
[1772309817596,4.04624273,82.959,82.93,15.57844413]
[1772309817801,4.04624273,82.939,82.9,12.06272617]
[1772309818009,4.04624273,82.939,82.9,27.6411703]
[1772309818614,4.04624273,82.939,82.91,15.57844413]
[1772309818818,4.04624273,82.939,82.9,27.6411703]
[1772309819722,12.05719935,82.938,82.91,15.57844413]
[1772309819908,16.10344208,82.938,82.91,15.57844413]
[1772309820529,12.05654758,82.943,82.911,12.06112578]
[1772309820823,12.05654758,82.943,82.896,30.15807172]
[1772309820824,4.04624273,82.942,82.897,12.06316272]
[1772309821022,4.04624273,82.942,82.9,15.57844413]
[1772309821605,4.04624273,82.939,82.882,12.06534591]
[1772309821900,12.05654758,82.943,82.91,15.57844413]
[1772309822103,4.04624273,82.959,82.93,15.57844413]
[1772309822323,4.04624273,82.949,82.911,12.06112578]
[1772309823521,4.04624273,82.947,82.911,12.06112578]
[1772309824224,4.04624273,82.957,82.92,15.57844413]
[1772309824518,4.04624273,82.965,82.94,15.57844413]
[1772309824824,4.04624273,82.965,82.912,1.20609803]
[1772309825021,4.04624273,82.965,82.93,15.57844413]
[1772309825520,4.04624273,82.965,82.94,15.57844413]
[1772309825823,4.04624273,82.988,82.95,15.57844413]
[1772309826021,4.04624273,82.988,82.94,15.57844413]
[1772309826206,4.04624273,82.979,82.94,15.57844413]
[1772309826528,4.04624273,82.988,82.95,15.57844413]
[1772309827230,4.04624273,82.988,82.94,15.57844413]
[1772309827607,4.04624273,82.977,82.935,12.05760028]
[1772309827806,4.04624273,82.969,82.92,15.57844413]
[1772309828019,4.04624273,82.969,82.93,15.57844413]
[1772309828426,4.04624273,82.988,82.94,15.57844413]
[1772309828634,4.04624273,83.01,82.98,15.57844413]
[1772309828810,4.04624273,83.048,83.0,15.57844413]
[1772309829010,4.04624273,83.048,82.98,15.57844413]
[1772309829011,4.04624273,83.048,82.988,0.28432314]
[1772309829214,42.13567687,83.065,83.008,3.84741996]
[1772309829410,3.95291601,83.019,82.937,47.41577694]
[1772309829622,15.57844413,83.02,82.937,47.41577694]
[1772309829929,3.95291601,83.01,82.95,15.57844413]
[1772309830131,3.95291601,82.989,82.938,42.20019773]
[1772309830350,3.95291601,82.989,82.94,15.57844413]
[1772309830634,15.57844413,83.0,82.938,42.20019773]
[1772309830932,15.57844413,83.02,82.97,15.57844413]
[1772309831111,3.95291601,83.024,82.99,15.57844413]
[1772309831315,15.57844413,83.03,82.942,5.64518502]
[1772309831517,12.04238921,83.04,82.941,1.20567632]
[1772309831518,3.95291601,83.009,82.961,3.84741996]
[1772309831820,12.04703161,83.008,82.971,3.84741996]
[1772309832018,12.04703161,83.008,82.961,3.84741996]
[1772309832019,3.95291601,82.999,82.961,3.84741996]
[1772309832219,3.95291601,82.969,82.905,12.06195268]
[1772309832420,15.57844413,82.96,82.92,15.57844413]
[1772309832929,42.16461063,83.008,82.92,15.57844413]
[1772309832930,3.95291601,82.959,82.92,15.57844413]
[1772309833320,3.95291601,82.959,82.91,15.57844413]
[1772309833638,12.05429253,82.958,82.91,15.57844413]
[1772309833829,3.95291601,82.957,82.91,15.57844413]
[1772309834016,12.05429253,82.958,82.894,30.15899823]
[1772309834017,12.05429253,82.958,82.92,15.57844413]
[1772309834220,15.57844413,82.95,82.911,3.84741996]
[1772309834413,3.95291601,82.957,82.911,3.84741996]
[1772309835129,3.95291601,82.949,82.911,3.84741996]
[1772309835516,15.57844413,82.95,82.911,3.84741996]
[1772309835918,3.95291601,82.929,82.89,15.57844413]
[1772309836230,3.95291601,82.948,82.9,15.57844413]
[1772309836538,3.99815674,82.929,82.89,15.57844413]
[1772309837914,12.05865328,82.928,82.891,4.03764707]
[1772309838127,12.05865328,82.928,82.866,7.78259754]
[1772309838128,15.57844413,82.91,82.87,4.03764707]
[1772309838425,15.57844413,82.9,82.87,4.03764707]
[1772309838625,3.99815674,82.899,82.866,7.78259754]
[1772309838809,47.07515381,82.928,82.867,4.03764707]
[1772309839014,15.57844413,82.9,82.867,4.03764707]
[1772309839209,15.57844413,82.9,82.866,7.78259754]
[1772309839419,15.57844413,82.88,82.845,4.03764707]
[1772309839622,15.57844413,82.88,82.831,4.03764707]
[1772309840030,15.57844413,82.88,82.841,4.03764707]
[1772309840031,12.06578264,82.879,82.841,4.03764707]
[1772309840438,42.23023925,82.879,82.841,4.03764707]
[1772309840838,12.06578264,82.879,82.851,4.03764707]
[1772309841010,60.62111572,82.958,82.831,12.07264808]
[1772309841011,3.99815674,82.916,82.871,4.03764707]
[1772309841213,15.57844413,82.92,82.881,4.03764707]
[1772309841428,3.99815674,82.889,82.837,4.03764707]
[1772309841630,3.99815674,82.879,82.841,4.03764707]
[1772309842017,12.06592823,82.878,82.851,4.03764707]
[1772309842220,15.57844413,82.87,82.841,4.03764707]
[1772309842421,12.06592823,82.878,82.841,4.03764707]
[1772309843129,3.99815674,82.877,82.841,4.03764707]
[1772309843829,15.57844413,82.87,82.841,4.03764707]
[1772309844222,3.99815674,82.868,82.831,4.03764707]
[1772309844420,12.06723865,82.869,82.841,4.03764707]
[1772309844839,42.23533528,82.869,82.841,4.03764707]
[1772309845336,42.23533528,82.869,82.831,4.03764707]
[1772309845337,3.99815674,82.868,82.831,4.03764707]
[1772309846128,19.57660087,82.86,82.831,4.03764707]
[1772309846536,19.57660087,82.86,82.807,4.03764707]
[1772309846537,3.99815674,82.841,82.807,4.03764707]
[1772309846843,3.99815674,82.841,82.67,15.77844413]
[1772309846844,15.57844413,82.83,82.798,4.03764707]
[1772309847015,15.57844413,82.82,82.798,4.03764707]
[1772309847219,15.57844413,82.81,82.79,0.2]
[1772309847715,3.99815674,82.856,82.792,4.03764707]
[1772309847918,15.57844413,82.82,82.79,0.2]
[1772309848251,12.07452396,82.819,82.79,0.2]
[1772309848748,15.57844413,82.81,82.79,0.2]
[1772309849042,3.99815674,82.809,82.79,0.2]
[1772309849245,15.57844413,82.8,82.77,4.03764707]
[1772309849615,15.57844413,82.8,82.771,12.08152613]
[1772309849822,15.57844413,82.8,82.772,4.03764707]
[1772309850130,16.07559728,82.799,82.765,12.08228971]
[1772309850339,15.57844413,82.78,82.752,4.03764707]
[1772309850543,19.57660087,82.79,82.752,4.03764707]
[1772309850840,12.07744054,82.799,82.761,4.03764707]
[1772309851442,15.57844413,82.78,82.749,4.03764707]
[1772309851744,19.57660087,82.77,82.741,12.08590662]
[1772309851923,19.57660087,82.78,82.742,4.03764707]
[1772309852237,15.57844413,82.78,82.742,4.03764707]
[1772309852445,15.57844413,82.78,82.741,12.08590662]
[1772309852446,27.65877783,82.78,82.744,4.03764707]
[1772309852745,3.99815674,82.769,82.74,0.2]
[1772309854339,3.99815674,82.769,82.741,12.08590662]
[1772309854539,3.99815674,82.779,82.742,4.03764707]
[1772309854920,15.57844413,82.77,82.742,4.03764707]
[1772309855123,3.99815674,82.769,82.74,0.2]
[1772309855642,3.99815674,82.769,82.717,30.22318657]
[1772309855643,3.99815674,82.759,82.722,4.03764707]
[1772309855838,3.99815674,82.768,82.731,4.03764707]
[1772309856035,3.99815674,82.778,82.741,4.03764707]
[1772309856823,3.99815674,82.776,82.741,4.03764707]
[1772309857031,3.99815674,82.769,82.731,16.12501456]
[1772309857544,3.99815674,82.776,82.732,4.03764707]
[1772309857737,3.99815674,82.769,82.732,4.03764707]
[1772309859138,16.08012078,82.768,82.732,4.03764707]
[1772309859330,3.99815674,82.767,82.732,4.03764707]
[1772309860427,3.99815674,82.767,82.733,12.08707529]
[1772309860633,3.99815674,82.765,82.733,12.08707529]
[1772309860827,3.99815674,82.779,82.741,4.03764707]
[1772309861032,15.63802662,82.76,82.722,4.03764707]
[1772309861640,3.99815674,82.767,82.731,4.03764707]
[1772309862037,3.99815674,82.759,82.722,4.03764707]
[1772309862340,3.99815674,82.768,82.731,4.03764707]
[1772309862728,12.08079096,82.777,82.71,0.2]
[1772309862729,3.99815674,82.759,82.727,4.03764707]
[1772309862924,3.99815674,82.759,82.71,0.2]
[1772309862925,3.99815674,82.739,82.71,0.2]
[1772309863450,3.99815674,82.739,82.69,15.63802662]
[1772309863451,15.63802662,82.72,82.697,4.03764707]
[1772309863746,19.63618336,82.72,82.688,4.03764707]
[1772309863923,3.99815674,82.72,82.688,4.03764707]
[1772309864130,3.99815674,82.719,82.688,4.03764707]
[1772309864359,4.24073022,82.709,82.679,4.35801199]
[1772309864731,12.09072882,82.708,82.679,4.35801199]
[1772309865148,15.63802662,82.72,82.681,4.35801199]
[1772309865332,12.08736749,82.731,82.701,4.35801199]
[1772309865644,15.63802662,82.73,82.691,4.35801199]
[1772309865946,12.08667865,82.736,82.701,4.35801199]
[1772309866749,12.08667865,82.736,82.703,4.29705202]
[1772309866933,15.63802662,82.73,82.703,4.29705202]
[1772309867129,4.16490848,82.719,82.685,4.29705202]
[1772309868438,15.63802662,82.7,82.67,4.49705202]
[1772309868757,27.72993568,82.7,82.672,4.29705202]
[1772309869048,12.08780582,82.728,82.691,4.29705202]
[1772309869943,12.08709152,82.733,82.701,4.29705202]
[1772309870130,12.08644601,82.738,82.701,4.29705202]
[1772309870332,3.69383402,82.735,82.672,4.29705202]
[1772309870532,15.63802662,82.71,82.672,4.29705202]
[1772309870734,12.0876597,82.729,82.693,4.29705202]
[1772309870939,42.30680897,82.729,82.693,4.29705202]
[1772309871459,4.16490848,82.728,82.693,4.29705202]
[1772309871657,15.63802662,82.71,82.681,4.29705202]
[1772309871838,4.16490848,82.689,82.632,4.29705202]
[1772309872159,15.63802662,82.67,82.634,12.10142563]
[1772309872347,15.63802662,82.67,82.612,6.30841155]
[1772309872348,15.63802662,82.65,82.621,4.29705202]
[1772309872738,27.73737767,82.65,82.621,4.29705202]
[1772309872939,27.73737767,82.65,82.61,4.29705202]
[1772309872940,15.63802662,82.64,82.61,4.29705202]
[1772309873148,4.16490848,82.649,82.611,12.10492549]
[1772309873352,15.63802662,82.68,82.641,4.29705202]
[1772309873657,4.16490848,82.678,82.641,4.29705202]
[1772309873842,15.63802662,82.67,82.631,4.29705202]
[1772309874048,15.63802662,82.66,82.631,4.29705202]
[1772309874242,4.16490848,82.659,82.621,4.29705202]
[1772309874839,15.63802662,82.66,82.621,4.29705202]
[1772309874840,4.16490848,82.657,82.621,4.29705202]
[1772309875169,15.63802662,82.65,82.621,4.29705202]
[1772309875370,4.16490848,82.657,82.621,16.40045468]
[1772309875668,4.16490848,82.657,82.621,4.29705202]
[1772309875961,15.63802662,82.65,82.621,4.29705202]
[1772309876960,12.09935994,82.649,82.611,4.29705202]
[1772309877158,4.16490848,82.667,82.621,4.29705202]
[1772309877460,15.63802662,82.66,82.621,4.29705202]
[1772309877642,19.8029351,82.66,82.621,4.29705202]
[1772309878462,19.8029351,82.66,82.603,0.2552131]
[1772309878463,4.16490848,82.679,82.641,4.29705202]
[1772309879582,4.16490848,82.679,82.65,19.93507864]
[1772309879762,4.16490848,82.679,82.65,4.29705202]
[1772309880066,12.0943535,82.684,82.651,4.29705202]
[1772309880359,0.75999999,82.686,82.653,4.29705202]
[1772309881164,0.75999999,82.686,82.623,1.21031673]
[1772309881165,4.16490848,82.685,82.624,4.29705202]
[1772309881345,15.63802662,82.66,82.625,4.29705202]
[1772309882165,4.16490848,82.668,82.625,4.29705202]
[1772309882355,4.16490848,82.668,82.624,12.10302091]
[1772309882356,15.63802662,82.67,82.631,4.29705202]
[1772309882549,12.0957362,82.674,82.641,4.29705202]
[1772309883648,12.0957362,82.674,82.632,12.10184916]
[1772309883649,0.75999999,82.686,82.651,4.29705202]
[1772309883849,12.85404685,82.686,82.661,4.29705202]
[1772309884054,0.75999999,82.686,82.661,4.29705202]
[1772309884947,0.75999999,82.686,82.663,4.29705202]
[1772309885148,12.09166349,82.702,82.671,4.29705202]
[1772309885480,12.09166349,82.702,82.681,4.29705202]
[1772309885770,4.16490848,82.726,82.691,4.29705202]
[1772309886075,12.08860403,82.723,82.691,4.29705202]
[1772309886446,16.25351251,82.723,82.691,4.29705202]
[1772309887041,16.25351251,82.723,82.671,4.29705202]
[1772309887042,42.30994513,82.723,82.671,4.29705202]
[1772309887242,4.16490848,82.722,82.69,15.63802662]
[1772309887871,12.08860403,82.723,82.7,15.63802662]
[1772309888064,12.08860403,82.723,82.67,42.33697653]
[1772309888065,16.25351251,82.723,82.69,19.93507864]
[1772309888566,16.25351251,82.723,82.691,4.29705202]
[1772309889248,19.8029351,82.72,82.691,4.29705202]
[1772309889453,4.16490848,82.709,82.671,4.29705202]
[1772309890453,12.09072882,82.708,82.672,4.29705202]
[1772309890970,16.2556373,82.708,82.672,4.29705202]
[1772309891168,4.16490848,82.707,82.672,4.29705202]
[1772309891547,4.16490848,82.707,82.646,1.20997991]
[1772309891548,3.69383402,82.731,82.691,4.29705202]
[1772309891746,15.63802662,82.73,82.691,4.29705202]
[1772309892163,12.08736749,82.731,82.701,4.29705202]
[1772309893454,12.08598558,82.741,82.711,4.29705202]
[1772309893847,15.63802662,82.74,82.711,4.29705202]
[1772309894047,12.08598558,82.741,82.711,4.29705202]
[1772309894450,15.63802662,82.74,82.711,4.29705202]
[1772309894652,12.08619876,82.739,82.711,4.29705202]
[1772309894852,4.16490848,82.719,82.679,4.29705202]
[1772309895054,15.63802662,82.71,82.672,4.29705202]
[1772309895958,4.16490848,82.709,82.67,15.63802662]
[1772309896172,102.73268952,82.739,82.664,4.29705202]
[1772309896173,15.63802662,82.7,82.664,4.29705202]
[1772309896373,15.63802662,82.7,82.671,4.46888731]
[1772309896673,12.09204464,82.699,82.671,4.46888731]
[1772309897357,4.44471545,82.698,82.662,4.46888731]
[1772309899361,12.09233708,82.697,82.664,4.46888731]
[1772309899870,12.0876597,82.729,82.691,4.46888731]
[1772309900177,4.44471545,82.728,82.691,4.46888731]
[1772309900674,4.44471545,82.719,82.679,4.46888731]
[1772309900882,15.63802662,82.71,82.681,4.46888731]
[1772309901391,12.09058264,82.709,82.681,4.46888731]
[1772309901676,15.63802662,82.7,82.672,4.46888731]
[1772309902871,4.44471545,82.699,82.663,4.46888731]
[1772309904372,12.09219086,82.698,82.664,12.09716442]
[1772309904772,4.44471545,82.697,82.664,12.09716442]
[1772309905365,12.09219086,82.698,82.643,4.46888731]
[1772309905366,2.49011121,82.679,82.643,4.46888731]
[1772309906268,15.63802662,82.67,82.643,4.46888731]
[1772309906467,15.63802662,82.67,82.643,16.56898565]
[1772309906668,12.09533296,82.677,82.644,4.46888731]
[1772309907978,16.54004841,82.677,82.644,4.46888731]
[1772309909983,16.54004841,82.677,82.645,12.09994555]
[1772309910278,16.54004841,82.677,82.646,4.46888731]
[1772309910478,16.54004841,82.677,82.645,12.09994555]
[1772309910479,16.53646766,82.701,82.661,4.46888731]
[1772309910677,15.63802662,82.7,82.661,4.46888731]
[1772309911662,12.09204464,82.699,82.663,4.46888731]
[1772309911976,12.09142974,82.704,82.671,4.46888731]
[1772309912879,4.44471545,82.703,82.671,4.46888731]
[1772309913066,4.44471545,82.699,82.671,4.46888731]
[1772309915466,12.09219086,82.698,82.671,4.46888731]
[1772309915667,16.53690631,82.698,82.671,4.46888731]
[1772309916681,12.09219086,82.698,82.671,4.46888731]
[1772309916886,4.44471545,82.697,82.663,4.46888731]
[1772309918481,12.09248331,82.696,82.665,4.46888731]
[1772309918879,4.44471545,82.714,82.671,4.46888731]
[1772309919178,4.44471545,82.714,82.681,4.46888731]
[1772309919384,3.69383402,82.732,82.691,4.46888731]
[1772309919591,15.78118818,82.732,82.701,4.46888731]
[1772309919763,12.08735416,82.732,82.701,4.46888731]
[1772309920169,4.44471545,82.719,82.672,4.46888731]
[1772309920698,16.53398259,82.718,82.681,4.46888731]
[1772309920907,12.08926714,82.718,82.681,4.46888731]
[1772309922180,4.44471545,82.717,82.681,4.46888731]
[1772309922606,12.08955945,82.716,82.683,4.46888731]
[1772309922997,15.65772326,82.71,82.683,4.46888731]
[1772309923199,16.5342749,82.716,82.683,4.46888731]
[1772309924504,16.5342749,82.716,82.685,4.05799517]
[1772309924705,16.5342749,82.716,82.649,1.20993599]
[1772309924706,4.23758833,82.709,82.676,4.05799517]
[1772309924904,4.23758833,82.699,82.666,4.05799517]
[1772309925084,15.65772326,82.69,82.666,4.05799517]
[1772309925895,12.09321828,82.691,82.666,4.05799517]
[1772309926495,15.65772326,82.7,82.668,4.31316299]
[1772309927303,12.0913136,82.704,82.668,4.31316299]
[1772309928110,16.39060944,82.704,82.668,4.31316299]
[1772309928308,15.65772326,82.7,82.668,4.31316299]
[1772309928507,4.29929584,82.699,82.659,4.31316299]
[1772309928718,12.0913136,82.704,82.648,4.31316299]
[1772309928719,4.29929584,82.689,82.648,4.31316299]
[1772309928925,4.29929584,82.689,82.651,4.31316299]
[1772309929412,4.29929584,82.689,82.647,12.09960066]
[1772309929413,12.0913136,82.704,82.661,4.31316299]
[1772309929603,12.0913136,82.704,82.671,4.31316299]
[1772309930219,12.0913136,82.704,82.672,4.31316299]
[1772309932011,12.09072882,82.708,82.672,4.31316299]
[1772309932399,16.39002466,82.708,82.672,4.31316299]
[1772309933093,12.0910212,82.706,82.672,4.31316299]
[1772309933293,16.39031704,82.706,82.672,4.31316299]
[1772309934792,16.39031704,82.706,82.644,60.49982087]
[1772309934793,4.29929584,82.699,82.661,4.31316299]
[1772309935612,12.09219086,82.698,82.663,4.31316299]
[1772309935812,12.09156223,82.703,82.671,4.31316299]
[1772309936520,16.39085807,82.703,82.671,4.31316299]
[1772309938122,4.29929584,82.702,82.671,4.31316299]
[1772309939004,4.29929584,82.699,82.661,4.31316299]
[1772309940704,4.29929584,82.697,82.663,4.31316299]
[1772309941704,4.29929584,82.697,82.671,4.31316299]
[1772309941896,12.09159249,82.703,82.671,4.31316299]
[1772309942099,4.29929584,82.702,82.671,4.31316299]
[1772309942615,12.09175221,82.701,82.671,4.31316299]
[1772309943326,12.09175221,82.701,82.672,4.31316299]
[1772309943818,12.09175221,82.701,82.673,4.31316299]
[1772309945202,4.29929584,82.701,82.673,4.31316299]
[1772309945807,4.29929584,82.701,82.675,4.31316299]
[1772309947208,16.39119426,82.7,82.675,4.31316299]
[1772309947616,4.29929584,82.699,82.675,4.31316299]
[1772309949205,12.09219086,82.698,82.675,4.31316299]
[1772309949924,16.3914867,82.698,82.675,4.31316299]
[1772309950227,4.29929584,82.697,82.675,4.31316299]
[1772309950822,12.09248331,82.696,82.675,4.31316299]
[1772309952112,16.39177915,82.696,82.675,4.31316299]
[1772309952434,4.29929584,82.695,82.675,4.31316299]
[1772309953139,12.09277577,82.694,82.675,4.31316299]
[1772309953538,4.29929584,82.693,82.668,4.31316299]
[1772309953712,4.29929584,82.693,82.663,12.09728454]
[1772309954030,12.09277577,82.694,82.663,4.31316299]
[1772309954031,4.29929584,82.689,82.663,4.31316299]
[1772309955121,4.29929584,82.687,82.663,4.31316299]
[1772309956434,4.29929584,82.687,82.658,4.31316299]
[1772309957214,4.13126867,82.685,82.658,4.31316299]
[1772309959623,4.13126867,82.679,82.652,4.27993529]
[1772309960640,5.36086188,82.721,82.627,45.28563529]
[1772309960641,4.13126867,82.695,82.654,4.27993529]
[1772309960933,4.13126867,82.702,82.671,4.27993529]
[1772309962234,4.13126867,82.702,82.66,5.84869744]
[1772309962235,4.13126867,82.689,82.655,4.27993529]
[1772309962921,4.13126867,82.687,82.657,4.27993529]
[1772309964717,4.13126867,82.687,82.657,4.25993529]
[1772309966038,16.22521444,82.686,82.657,4.25993529]
[1772309966335,4.13126867,82.685,82.658,12.09804253]
[1772309966636,4.13126867,82.685,82.659,4.27993529]
[1772309967535,4.13126867,82.685,82.659,4.25993529]
[1772309967750,4.13126867,82.679,82.645,12.09994555]
[1772309968119,4.13126867,82.677,82.645,12.09994555]
[1772309969668,4.13126867,82.677,82.646,4.27993529]
[1772309971020,4.13126867,82.677,82.648,4.27993529]
[1772309971221,12.09540858,82.676,82.648,4.27993529]
[1772309971439,4.13126867,82.675,82.648,4.27993529]
[1772309971619,4.13126867,82.675,82.648,4.15993529]
[1772309972635,4.13126867,82.675,82.649,12.09935994]
[1772309973642,4.13126867,82.675,82.65,4.27993529]
[1772309974024,12.09540858,82.676,82.65,4.27993529]
[1772309974618,12.09540858,82.676,82.652,4.27993529]
[1772309975937,5.84869744,82.68,82.652,4.27993529]
[1772309976140,12.0949697,82.679,82.652,4.27993529]
[1772309978652,12.0949697,82.679,82.654,4.27993529]
[1772309980025,5.84869744,82.68,82.656,4.27993529]
[1772309980326,12.0949697,82.679,82.656,4.27993529]
[1772309980528,16.22557948,82.684,82.656,4.27993529]
[1772309980742,5.84869744,82.68,82.656,4.27993529]
[1772309981045,12.09431081,82.684,82.656,4.27993529]
[1772309982229,16.22477566,82.689,82.656,4.27993529]
[1772309982426,12.09350699,82.689,82.656,4.27993529]
[1772309982626,4.13126867,82.688,82.656,4.27993529]
[1772309982823,4.13126867,82.696,82.658,4.27993529]
[1772309983027,12.09058264,82.709,82.671,4.27993529]
[1772309984433,12.08999794,82.713,82.681,4.25680395]
[1772309984830,0.74599999,82.73,82.672,12.0959938]
[1772309984831,12.08852212,82.724,82.691,4.25680395]
[1772309985034,4.23097383,82.723,82.691,4.25680395]
[1772309986633,0.74599999,82.73,82.701,4.09109569]
[1772309986858,42.30680897,82.729,82.694,4.09109569]
[1772309987047,4.30372934,82.728,82.694,4.09109569]
[1772309988144,4.30372934,82.709,82.681,16.18577282]
[1772309988353,4.30372934,82.709,82.682,4.09109569]
[1772309988548,4.30372934,82.709,82.684,4.09109569]
[1772309990059,4.30372934,82.709,82.686,4.09109569]
[1772309990760,4.30372934,82.707,82.686,4.09109569]
[1772309990938,4.30372934,82.699,82.676,4.09109569]
[1772309991764,4.30372934,82.699,82.67,4.09109569]
[1772309991945,4.30372934,82.719,82.691,4.09109569]
[1772309992152,0.74599999,82.73,82.701,4.09109569]
[1772309992348,5.04972933,82.73,82.701,4.09109569]
[1772309992544,0.74599999,82.73,82.701,4.09109569]
[1772309992846,0.74599999,82.73,82.711,4.09109569]
[1772309994357,0.74599999,82.73,82.721,4.09109569]
[1772309994551,12.08494715,82.748,82.721,4.09109569]
[1772309994950,12.08421967,82.753,82.721,4.09109569]
[1772309995740,4.30372934,82.752,82.721,4.09109569]
[1772309995967,4.30372934,82.749,82.721,4.09109569]
[1772309996755,12.08488422,82.748,82.721,4.09109569]
[1772309997068,4.30372934,82.747,82.721,4.09109569]
[1772309998058,12.08488422,82.748,82.731,4.09109569]
[1772309999063,12.08400802,82.754,82.731,4.09109569]
[1772309999271,4.30372934,82.749,82.713,4.09109569]
[1772309999566,4.494541,82.74,82.713,4.09109569]
[1772309999768,42.29402807,82.754,82.721,4.09109569]
[1772309999769,12.08400802,82.754,82.721,4.09109569]
[1772309999959,12.08400802,82.754,82.731,4.09109569]
[1772310000964,60.40950369,82.769,82.7,4.494541]
[1772310000965,16.39007418,82.738,82.7,4.494541]
[1772310001265,4.30372934,82.737,82.71,4.494541]
[1772310001470,12.08327795,82.759,82.73,4.494541]
[1772310001662,0.1,82.77,82.75,4.494541]
[1772310001868,12.07982083,82.783,82.75,4.494541]
[1772310002255,12.07913416,82.788,82.76,4.494541]
[1772310002869,12.07933708,82.786,82.761,4.09109569]
[1772310003868,4.594541,82.8,82.78,4.494541]
[1772310003869,0.1,82.8,82.78,4.494541]
[1772310004460,0.1,82.8,82.79,4.494541]
[1772310005371,4.5,82.829,82.791,12.07860757]
[1772310005560,4.5,82.829,82.8,4.494541]
[1772310006068,4.5,82.838,82.82,4.494541]
[1772310006263,4.5,82.838,82.81,4.494541]
[1772310006653,4.5,82.838,82.82,4.494541]
[1772310007210,4.494541,82.84,82.791,30.19651894]
[1772310007367,42.24655086,82.847,82.81,4.494541]
[1772310007368,4.5,82.839,82.81,4.494541]
[1772310007565,4.5,82.839,82.82,4.494541]
[1772310007762,16.56913198,82.856,82.83,4.494541]
[1772310007968,4.5,82.855,82.83,4.494541]
[1772310008362,4.5,82.855,82.84,4.494541]
[1772310008566,4.5,82.863,82.84,4.494541]
[1772310008875,4.5,82.862,82.83,4.494541]
[1772310009175,4.5,82.857,82.82,4.494541]
[1772310009672,4.5,82.857,82.818,12.07455017]
[1772310009673,4.5,82.849,82.791,30.19625804]
[1772310009854,4.5,82.849,82.82,4.494541]
[1772310010058,4.5,82.849,82.81,4.494541]
[1772310010574,4.5,82.849,82.82,4.494541]
[1772310010751,4.5,82.849,82.83,4.494541]
[1772310011773,4.5,82.858,82.831,12.07277468]
[1772310012080,4.5,82.858,82.793,1.20783157]
[1772310012255,4.5,82.858,82.82,4.494541]
[1772310012774,4.5,82.858,82.83,4.494541]
[1772310013277,4.5,82.858,82.84,4.494541]